[Event "MČR 2022 rapid"]
[Site "Turnov, Czech Republic"]
[Date "2022.09.11"]
[Round "1.7"]
[White "Neuman, Petr"]
[Black "Janda, Zdeněk"]
[Result "1-0"]
[TimeControl "2x 15 min + 5s/move"]
[WhiteElo "2416"]
[BlackElo "2004"]

1. d4 {[%clk 00:15:08]} d5 {[%clk 00:15:05]} 2. c4 {[%clk 00:15:12]} c6 {[%clk
00:15:07]} 3. Nc3 {[%clk 00:15:07]} Bf5 4. Qb3 b6 {[%clk 00:14:32]} {[%emt
00:01:23]} 5. cxd5 {[%clk 00:15:09]} cxd5 {[%clk 00:14:26]} 6. Qxd5 {[%clk
00:14:34]} Qxd5 {[%clk 00:14:20]} {[%emt 00:00:14]} 7. Nxd5 {[%clk 00:14:38]}
Kd8 {[%clk 00:14:09]} {[%emt 00:00:45]} 8. Nc3 {[%clk 00:14:04]} {[%emt
00:00:58]} Nc6 {[%clk 00:14:02]} 9. e4 {[%clk 00:14:06]} Bg6 {[%clk 00:14:03]}
10. Be3 {[%clk 00:14:08]} e6 {[%clk 00:13:56]} 11. f3 {[%clk 00:14:08]} Nf6
{[%clk 00:13:18]} {[%emt 00:00:29]} 12. Bb5 {[%clk 00:14:09]} {[%emt 00:00:04]}
Rc8 {[%clk 00:13:16]} {[%emt 00:00:05]} 13. Nge2 {[%clk 00:14:08]} {[%emt
00:00:06]} Nb4 {[%clk 00:12:37]} {[%emt 00:01:19]} 14. Kd2 {[%clk 00:14:11]} a6
{[%clk 00:12:33]} {[%emt 00:00:05]} 15. Ba4 {[%clk 00:14:15]} b5 {[%clk
00:12:34]} 16. Bb3 {[%clk 00:14:18]} Nc6 {[%clk 00:12:28]} 17. Rhd1 {[%clk
00:14:08]} {[%emt 00:00:05]} Bb4 {[%clk 00:12:27]} {[%emt 00:00:05]} 18. Ke1
{[%clk 00:13:51]} {[%emt 00:00:21]} Na5 {[%clk 00:12:08]} {[%emt 00:00:28]} 19.
Kf2 {[%clk 00:13:49]} {[%emt 00:00:05]} Ke7 {[%clk 00:12:00]} {[%emt 00:00:09]}
20. Rac1 {[%clk 00:13:42]} {[%emt 00:00:12]} Rhd8 {[%clk 00:11:51]} {[%emt
00:00:51]} 21. Nf4 {[%clk 00:13:36]} {[%emt 00:00:25]} Nc4 {[%clk 00:11:37]} 22.
Bxc4 {[%clk 00:13:39]} Rxc4 {[%clk 00:11:33]} 23. Nce2 {[%clk 00:13:38]} Rdc8
{[%clk 00:11:12]} {[%emt 00:00:13]} 24. Rxc4 {[%clk 00:13:39]} {[%emt
00:00:10]} bxc4 {[%clk 00:10:57]} {[%emt 00:00:16]} 25. g4 {[%clk 00:13:28]}
{[%emt 00:00:12]} Nd7 {[%clk 00:10:49]} {[%emt 00:00:14]} 26. Rc1 {[%clk
00:13:19]} {[%emt 00:00:14]} Nb6 {[%clk 00:10:47]} {[%emt 00:00:10]} 27. h4
{[%clk 00:13:08]} {[%emt 00:00:14]} f6 {[%clk 00:10:47]} {[%emt 00:00:05]} 28.
d5 {[%clk 00:13:02]} {[%emt 00:00:11]} Na4 {[%clk 00:10:42]} {[%emt 00:00:19]}
29. b3 {[%clk 00:12:50]} {[%emt 00:00:07]} Nb2 {[%clk 00:10:35]} {[%emt
00:00:12]} 30. bxc4 {[%clk 00:10:12]} {[%emt 00:02:42]} Rxc4 {[%clk 00:10:29]}
{[%emt 00:00:25]} 31. Rxc4 {[%clk 00:10:06]} Nxc4 {[%clk 00:10:30]} {[%emt
00:00:09]} 32. Nxe6 {[%clk 00:10:03]} {[%emt 00:00:05]} Nxe3 {[%clk 00:10:05]}
{[%emt 00:00:31]} 33. Kxe3 {[%clk 00:10:06]} Be8 {[%clk 00:09:37]} {[%emt
00:00:31]} 34. Nxg7 {[%clk 00:09:50]} {[%emt 00:00:55]} Bc5+ {[%clk 00:09:14]}
{[%emt 00:01:34]} 35. Nd4 {[%clk 00:09:33]} Ba4 {[%clk 00:09:15]} 36. Ngf5+
{[%clk 00:09:35]} Kf7 {[%clk 00:09:06]} 37. f4 {[%clk 00:09:35]} Bb5 {[%clk
00:09:04]} 38. e5 {[%clk 00:09:26]} Bc4 {[%clk 00:08:53]} 39. e6+ {[%clk
00:09:18]} {[%emt 00:00:04]} Kf8 {[%clk 00:08:18]} {[%emt 00:01:08]} 40. Ke4
{[%clk 00:09:07]} Bxa2 {[%clk 00:08:13]} 41. d6 {[%clk 00:09:10]} a5 {[%clk
00:07:43]} {[%emt 00:00:41]} 42. d7 {[%clk 00:08:56]} {[%emt 00:00:07]} Bb6
{[%clk 00:07:27]} {[%emt 00:00:19]} 43. e7+ {[%emt 00:00:19]} 1-0

[Event "MČR 2022 rapid"]
[Site "Turnov, Czech Republic"]
[Date "2022.09.11"]
[Round "1.8"]
[White "Papay, Jindřich"]
[Black "Klement, Lukáš"]
[Result "1-0"]
[TimeControl "2x 15 min + 5s/move"]
[WhiteElo "1926"]
[BlackElo "2264"]

1. f4 {[%clk 00:15:07]} Nf6 {[%clk 00:15:02]} 2. Nf3 {[%clk 00:15:09]} g6
{[%clk 00:15:04]} 3. g3 {[%clk 00:15:12]} Bg7 {[%clk 00:15:08]} 4. Bg2 {[%clk
00:15:16]} O-O {[%clk 00:15:09]} 5. d3 {[%clk 00:15:19]} d5 {[%clk 00:14:49]} 6.
O-O {[%clk 00:15:19]} c5 {[%clk 00:14:52]} 7. c3 {[%clk 00:15:21]} Nc6 {[%clk
00:14:52]} 8. Qc2 d4 {[%clk 00:13:46]} {[%emt 00:00:23]} 9. e4 {[%clk
00:15:22]} e5 {[%clk 00:13:05]} {[%emt 00:00:08]} 10. Na3 {[%clk 00:14:35]}
{[%emt 00:00:50]} Bg4 {[%clk 00:10:02]} {[%emt 00:03:11]} 11. h3 {[%clk
00:13:53]} {[%emt 00:01:08]} Bxf3 {[%clk 00:10:04]} 12. Rxf3 {[%clk 00:13:55]}
exf4 {[%clk 00:09:16]} {[%emt 00:00:39]} 13. gxf4 {[%clk 00:13:31]} {[%emt
00:00:24]} a6 {[%clk 00:09:02]} {[%emt 00:00:29]} 14. c4 {[%clk 00:13:23]}
{[%emt 00:00:05]} Ne8 {[%clk 00:08:02]} {[%emt 00:01:08]} 15. Qe2 {[%clk
00:11:21]} {[%emt 00:02:28]} Nc7 {[%clk 00:08:00]} 16. Nc2 {[%clk 00:11:16]}
Re8 {[%clk 00:06:58]} {[%emt 00:00:58]} 17. Bd2 {[%clk 00:10:09]} {[%emt
00:01:42]} b5 {[%clk 00:06:58]} 18. b3 {[%clk 00:10:13]} bxc4 {[%clk 00:06:59]}
19. bxc4 {[%clk 00:10:16]} Rb8 {[%clk 00:07:01]} 20. Bc1 {[%clk 00:07:56]}
{[%emt 00:02:34]} a5 {[%clk 00:06:59]} 21. Ba3 {[%clk 00:07:55]} Nb4 {[%clk
00:07:00]} 22. Nxb4 {[%clk 00:07:21]} {[%emt 00:00:46]} cxb4 {[%clk 00:07:01]}
23. Bb2 {[%clk 00:07:22]} Na6 {[%clk 00:07:00]} {[%emt 00:00:05]} 24. f5 {[%clk
00:07:04]} {[%emt 00:00:18]} Bh6 {[%clk 00:06:13]} {[%emt 00:00:52]} 25. Raf1
{[%clk 00:07:01]} {[%emt 00:00:13]} Qg5 {[%clk 00:05:12]} {[%emt 00:01:10]} 26.
Bc1 {[%clk 00:06:10]} {[%emt 00:00:47]} Qh5 {[%clk 00:05:15]} {[%emt 00:00:09]}
27. Bxh6 {[%clk 00:05:11]} {[%emt 00:00:59]} Qxh6 {[%clk 00:05:18]} {[%emt
00:00:05]} 28. fxg6 {[%clk 00:05:14]} fxg6 {[%clk 00:05:18]} {[%emt 00:00:05]}
29. e5 {[%clk 00:05:04]} {[%emt 00:00:16]} Qg5 {[%clk 00:04:49]} {[%emt
00:00:33]} 30. e6 {[%clk 00:04:43]} {[%emt 00:00:27]} Nc5 {[%clk 00:04:23]}
{[%emt 00:00:33]} 31. Qf2 {[%clk 00:04:24]} {[%emt 00:00:21]} Nxe6 {[%clk
00:04:10]} {[%emt 00:00:15]} 32. Rg3 {[%clk 00:04:19]} {[%emt 00:00:10]} Qe7
{[%clk 00:02:41]} {[%emt 00:02:04]} 33. Bd5 {[%clk 00:04:22]} Kh8 {[%clk
00:02:26]} 34. Re1 {[%clk 00:03:23]} {[%emt 00:00:55]} Qd7 {[%clk 00:01:56]}
{[%emt 00:00:36]} 35. Rxe6 {[%clk 00:01:19]} {[%emt 00:02:10]} Rxe6 {[%clk
00:01:52]} {[%emt 00:00:09]} 36. Qxd4+ {[%clk 00:01:21]} {[%emt 00:00:09]} Kg8
{[%clk 00:01:52]} 37. Re3 {[%clk 00:01:12]} {[%emt 00:00:11]} Qg7 {[%clk
00:00:23]} {[%emt 00:01:39]} 38. Bxe6+ {[%clk 00:00:47]} {[%emt 00:00:25]} Kh8
{[%clk 00:00:27]} 39. Qxg7+ {[%clk 00:00:48]} {[%emt 00:00:11]} Kxg7 {[%clk
00:00:31]} 40. c5 {[%clk 00:00:49]} Rb5 {[%clk 00:00:15]} {[%emt 00:00:22]} 41.
d4 {[%clk 00:00:45]} {[%emt 00:00:08]} a4 {[%clk 00:00:17]} {[%emt 00:00:05]}
42. c6 {[%clk 00:00:47]} {[%emt 00:00:04]} b3 {[%clk 00:00:17]} {[%emt
00:00:04]} 43. axb3 {[%clk 00:00:49]} {[%emt 00:00:04]} a3 {[%clk 00:00:09]}
{[%emt 00:00:15]} 44. b4 {[%clk 00:00:51]} Rb6 {[%clk 00:00:12]} 45. b5 {[%clk
00:00:51]} {[%emt 00:00:33]} Rxb5 {[%clk 00:00:15]} 46. c7 {[%clk 00:00:49]}
Rb1+ {[%clk 00:00:18]} 47. Kf2 {[%clk 00:00:52]} a2 {[%clk 00:00:16]} {[%emt
00:00:05]} 48. Bxa2 {[%clk 00:00:54]} {[%emt 00:00:20]} Rb2+ {[%clk 00:00:16]}
49. Re2 {[%clk 00:00:58]} 1-0

[Event "MČR 2022 rapid"]
[Site "Turnov, Czech Republic"]
[Date "2022.09.11"]
[Round "2.1"]
[White "Plát, Vojtěch"]
[Black "Zeman, Matyáš"]
[Result "1/2-1/2"]
[TimeControl "2x 15 min + 5s/move"]
[WhiteElo "2563"]
[BlackElo "2292"]

1. e4 {[%clk 00:15:08]} {[%emt 00:00:05]} c6 {[%clk 00:15:06]} {[%emt
00:00:04]} 2. Nf3 {[%clk 00:15:12]} d5 {[%clk 00:15:11]} 3. d3 {[%clk
00:15:16]} dxe4 {[%clk 00:15:12]} {[%emt 00:00:05]} 4. dxe4 {[%clk 00:15:20]}
Qxd1+ {[%clk 00:15:16]} {[%emt 00:00:05]} 5. Kxd1 {[%clk 00:15:24]} Nf6 {[%clk
00:15:20]} 6. Nbd2 {[%clk 00:15:28]} {[%emt 00:00:09]} Bg4 {[%clk 00:15:06]}
{[%emt 00:00:09]} 7. Be2 {[%clk 00:15:32]} Nbd7 {[%clk 00:15:04]} {[%emt
00:00:09]} 8. Ne1 {[%clk 00:15:36]} Bxe2+ 9. Kxe2 {[%clk 00:15:39]} Nb6 {[%clk
00:14:23]} {[%emt 00:00:38]} 10. a4 {[%clk 00:15:40]} {[%emt 00:00:07]} a5
{[%clk 00:14:24]} {[%emt 00:00:05]} 11. Nd3 {[%clk 00:15:44]} Nfd7 {[%clk
00:14:27]} {[%emt 00:00:08]} 12. b3 {[%clk 00:15:37]} {[%emt 00:00:04]} e5
{[%clk 00:14:29]} {[%emt 00:00:09]} 13. Bb2 {[%clk 00:15:39]} f6 {[%clk
00:14:32]} 14. Nf3 {[%clk 00:13:09]} {[%emt 00:02:35]} Nc5 {[%clk 00:14:17]}
{[%emt 00:00:18]} 15. Nxc5 {[%clk 00:13:13]} Bxc5 {[%clk 00:14:21]} 16. Rhd1
{[%clk 00:13:16]} {[%emt 00:00:05]} Ke7 {[%clk 00:13:53]} {[%emt 00:00:42]} 17.
Ne1 {[%clk 00:13:03]} {[%emt 00:00:09]} Rhd8 {[%clk 00:13:35]} {[%emt
00:00:28]} 18. Nd3 {[%clk 00:13:01]} {[%emt 00:00:05]} Bd6 {[%clk 00:13:35]}
{[%emt 00:00:05]} 19. Rd2 {[%clk 00:12:36]} {[%emt 00:00:32]} Nd7 {[%clk
00:13:21]} {[%emt 00:00:14]} 20. Rad1 {[%clk 00:12:40]} Nc5 {[%clk 00:13:12]}
{[%emt 00:00:17]} 21. Nxc5 {[%clk 00:12:00]} {[%emt 00:00:43]} Bxc5 {[%clk
00:13:16]} 22. Rxd8 {[%clk 00:12:03]} {[%emt 00:00:09]} Rxd8 {[%clk 00:13:21]}
23. Rxd8 {[%clk 00:12:07]} Kxd8 {[%clk 00:13:25]} 24. Bc3 {[%clk 00:11:57]}
{[%emt 00:00:10]} Bb6 {[%clk 00:13:22]} {[%emt 00:00:08]} 25. f3 {[%clk
00:12:01]} Kd7 {[%clk 00:13:26]} {[%emt 00:00:07]} 26. Kd3 {[%clk 00:12:05]} c5
{[%clk 00:11:48]} {[%emt 00:01:40]} 27. g3 {[%clk 00:11:28]} {[%emt 00:00:50]}
Bc7 {[%clk 00:11:40]} {[%emt 00:00:09]} 28. Bd2 {[%clk 00:11:30]} Kc6 {[%clk
00:11:38]} {[%emt 00:00:06]} 29. Kc4 {[%clk 00:11:33]} {[%emt 00:00:05]} b6
{[%clk 00:07:40]} {[%emt 00:03:59]} 30. c3 {[%clk 00:11:34]} {[%emt 00:00:07]}
g6 {[%clk 00:07:39]} {[%emt 00:00:09]} 31. g4 {[%clk 00:11:37]} Bd8 {[%clk
00:07:29]} {[%emt 00:00:12]} 32. b4 {[%clk 00:11:29]} {[%emt 00:00:13]} g5
{[%clk 00:07:17]} {[%emt 00:00:17]} 33. Be3 {[%clk 00:10:11]} {[%emt 00:01:21]}
Be7 {[%clk 00:07:21]} 34. bxa5 {[%clk 00:09:41]} {[%emt 00:00:42]} bxa5 {[%clk
00:07:25]} 35. Bf2 {[%clk 00:09:30]} {[%emt 00:00:11]} h6 {[%clk 00:07:28]}
{[%emt 00:00:11]} 36. h4 {[%clk 00:09:22]} {[%emt 00:00:05]} Bf8 {[%clk
00:07:32]} {[%emt 00:00:09]} 37. Kd3 {[%clk 00:09:00]} {[%emt 00:00:18]} Be7
{[%clk 00:07:30]} {[%emt 00:00:08]} 38. Be1 {[%clk 00:09:04]} Bf8 {[%clk
00:07:26]} {[%emt 00:00:10]} 39. Ke2 {[%clk 00:08:04]} {[%emt 00:01:07]} c4
{[%clk 00:06:42]} {[%emt 00:00:46]} 40. Bf2 {[%clk 00:07:24]} {[%emt 00:00:49]}
Bc5 {[%clk 00:06:46]} 41. Bxc5 {[%emt 00:00:24]} 1/2-1/2

[Event "MČR 2022 rapid"]
[Site "Turnov, Czech Republic"]
[Date "2022.09.11"]
[Round "2.2"]
[White "Pýchová, Nela"]
[Black "Jansa, Vlastimil"]
[Result "1/2-1/2"]
[TimeControl "2x 15 min + 5s/move"]
[WhiteElo "2159"]
[BlackElo "2452"]

1. c4 {[%clk 00:15:07]} g6 {[%clk 00:15:09]} 2. Nc3 {[%clk 00:15:08]} {[%emt
00:00:04]} c5 {[%clk 00:15:12]} {[%emt 00:00:09]} 3. g3 {[%clk 00:15:11]} Bg7
{[%clk 00:15:16]} 4. Bg2 {[%clk 00:15:14]} Nc6 {[%clk 00:15:17]} {[%emt
00:00:05]} 5. Nf3 {[%clk 00:15:16]} {[%emt 00:00:05]} e5 {[%clk 00:15:21]} 6.
O-O {[%clk 00:15:15]} {[%emt 00:00:06]} d6 {[%clk 00:15:19]} {[%emt 00:00:05]}
7. Ne1 {[%clk 00:15:15]} {[%emt 00:00:07]} Be6 {[%clk 00:15:17]} {[%emt
00:00:06]} 8. d3 {[%clk 00:13:28]} {[%emt 00:01:59]} Nge7 {[%clk 00:15:16]} 9.
Nc2 {[%clk 00:13:21]} {[%emt 00:00:08]} d5 {[%clk 00:15:05]} {[%emt 00:00:16]}
10. cxd5 {[%clk 00:12:36]} {[%emt 00:00:51]} Nxd5 {[%clk 00:15:08]} 11. Ne3
{[%clk 00:11:06]} {[%emt 00:01:40]} Nde7 {[%clk 00:15:00]} {[%emt 00:00:13]} 12.
Rb1 {[%clk 00:10:31]} {[%emt 00:00:36]} O-O {[%clk 00:14:37]} {[%emt 00:00:31]}
13. a3 {[%clk 00:10:14]} {[%emt 00:00:22]} a5 {[%clk 00:14:35]} {[%emt
00:00:06]} 14. Bd2 {[%clk 00:09:12]} {[%emt 00:01:04]} Rb8 {[%clk 00:14:18]}
{[%emt 00:00:22]} 15. Ne4 {[%clk 00:07:57]} {[%emt 00:01:20]} b6 {[%clk
00:13:37]} {[%emt 00:00:46]} 16. b4 {[%clk 00:06:54]} {[%emt 00:01:08]} axb4
{[%clk 00:13:22]} {[%emt 00:00:25]} 17. axb4 {[%clk 00:06:57]} cxb4 {[%clk
00:13:20]} {[%emt 00:00:18]} 18. Bxb4 {[%clk 00:06:42]} {[%emt 00:00:09]} Nxb4
{[%clk 00:13:01]} {[%emt 00:00:20]} 19. Rxb4 {[%clk 00:06:45]} {[%emt
00:00:05]} Nd5 {[%clk 00:12:11]} {[%emt 00:00:53]} 20. Nxd5 {[%clk 00:06:37]}
{[%emt 00:00:22]} Bxd5 {[%clk 00:12:14]} 21. Nd2 {[%clk 00:03:53]} {[%emt
00:02:47]} Bxg2 {[%clk 00:11:46]} {[%emt 00:00:33]} 22. Kxg2 {[%clk 00:03:56]}
Qd5+ {[%clk 00:11:32]} {[%emt 00:00:16]} 23. Nf3 {[%clk 00:03:13]} {[%emt
00:00:48]} Rfc8 {[%clk 00:10:58]} {[%emt 00:00:40]} 24. Qb1 {[%clk 00:02:41]}
{[%emt 00:00:37]} b5 {[%clk 00:10:22]} {[%emt 00:00:41]} 25. Kg1 {[%clk
00:01:35]} {[%emt 00:01:19]} Bf8 {[%clk 00:10:00]} {[%emt 00:00:18]} 26. Rb3
{[%clk 00:01:34]} {[%emt 00:00:05]} Rc6 {[%clk 00:08:49]} {[%emt 00:01:16]} 27.
Nd2 {[%clk 00:01:06]} {[%emt 00:00:36]} b4 {[%clk 00:08:12]} {[%emt 00:00:39]}
28. Nc4 {[%clk 00:00:57]} {[%emt 00:00:15]} e4 {[%clk 00:07:50]} {[%emt
00:00:28]} 29. Ne3 {[%clk 00:00:56]} {[%emt 00:00:05]} Qb5 {[%clk 00:06:14]}
{[%emt 00:01:40]} 30. dxe4 {[%clk 00:00:39]} {[%emt 00:00:22]} Qxe2 {[%clk
00:06:13]} {[%emt 00:00:07]} 31. Nd5 {[%clk 00:00:35]} {[%emt 00:00:09]} Re6
{[%clk 00:04:57]} {[%emt 00:01:21]} 32. Re1 {[%clk 00:00:27]} {[%emt 00:00:13]}
Qc4 {[%clk 00:04:04]} {[%emt 00:01:04]} 33. Nf4 {[%clk 00:00:17]} {[%emt
00:00:13]} Rc6 {[%clk 00:03:43]} {[%emt 00:00:22]} 34. Nd5 {[%clk 00:00:15]}
{[%emt 00:00:11]} Qd4 {[%clk 00:03:09]} {[%emt 00:00:43]} 35. Rd1 {[%clk
00:00:15]} Qe5 {[%clk 00:02:55]} {[%emt 00:00:16]} 36. Rf3 {[%clk 00:00:10]}
{[%emt 00:00:09]} Rb7 {[%clk 00:02:08]} {[%emt 00:00:54]} 37. h4 {[%clk
00:00:13]} {[%emt 00:00:06]} h5 {[%clk 00:02:11]} 38. Kg2 {[%clk 00:00:09]}
{[%emt 00:00:05]} Kg7 {[%clk 00:02:02]} {[%emt 00:00:15]} 39. Nf4 {[%clk
00:00:09]} {[%emt 00:00:09]} b3 {[%clk 00:01:37]} {[%emt 00:00:32]} 40. Rxb3
{[%clk 00:00:08]} {[%emt 00:00:04]} Rxb3 {[%clk 00:01:37]} {[%emt 00:00:05]} 41.
Qxb3 {[%clk 00:00:12]} Qxe4+ {[%clk 00:01:39]} {[%emt 00:00:04]} 42. Qf3 {[%clk
00:00:11]} {[%emt 00:00:05]} Qxf3+ {[%clk 00:01:35]} {[%emt 00:00:06]} 43. Kxf3
{[%clk 00:00:15]} {[%emt 00:00:06]} Rc2 {[%clk 00:01:39]} 44. Re1 {[%clk
00:00:18]} {[%emt 00:00:04]} Bc5 {[%clk 00:01:42]} 45. Re2 Rc3+ {[%clk
00:01:45]} 46. Kg2 {[%clk 00:00:26]} Ra3 {[%clk 00:01:24]} {[%emt 00:00:31]} 47.
Rc2 {[%clk 00:00:29]} Bd6 {[%clk 00:01:26]} 48. Nd5 {[%clk 00:00:22]} {[%emt
00:00:11]} Rd3 {[%clk 00:01:25]} {[%emt 00:00:08]} 49. Ne3 {[%clk 00:00:21]}
{[%emt 00:00:08]} f5 {[%clk 00:01:21]} {[%emt 00:00:06]} 50. Rc6 {[%clk
00:00:10]} {[%emt 00:00:15]} f4 {[%clk 00:01:22]} {[%emt 00:00:15]} 51. gxf4
{[%clk 00:00:11]} Bxf4 {[%clk 00:01:26]} 52. Nf1 {[%clk 00:00:08]} {[%emt
00:00:05]} Be5 {[%clk 00:01:21]} {[%emt 00:00:08]} 53. Rc4 {[%clk 00:00:09]}
{[%emt 00:00:04]} Kf6 {[%clk 00:00:58]} {[%emt 00:00:27]} 54. Ng3 {[%clk
00:00:13]} {[%emt 00:00:05]} Ke6 {[%clk 00:01:01]} 55. Rc6+ {[%clk 00:00:16]}
{[%emt 00:00:04]} Kf7 {[%clk 00:00:57]} {[%emt 00:00:05]} 56. Rc4 {[%clk
00:00:20]} 1/2-1/2

[Event "MČR 2022 rapid"]
[Site "Turnov, Czech Republic"]
[Date "2022.09.11"]
[Round "2.3"]
[White "Červený, Martin"]
[Black "Skácelík, Petr"]
[Result "1-0"]
[TimeControl "2x 15 min + 5s/move"]
[WhiteElo "2413"]
[BlackElo "2128"]

1. d4 {[%clk 00:15:07]} Nf6 {[%clk 00:15:07]} {[%emt 00:00:09]} 2. c4 {[%clk
00:15:10]} e6 {[%clk 00:15:06]} {[%emt 00:00:05]} 3. Nf3 {[%clk 00:15:14]} b6
{[%clk 00:15:03]} {[%emt 00:00:06]} 4. g3 {[%clk 00:15:17]} Ba6 {[%clk
00:14:58]} {[%emt 00:00:12]} 5. Qa4 {[%clk 00:15:20]} Bb7 {[%clk 00:14:54]}
{[%emt 00:00:18]} 6. Bg2 {[%clk 00:15:24]} c5 {[%clk 00:14:54]} 7. dxc5 {[%clk
00:15:26]} {[%emt 00:00:04]} Bxc5 {[%clk 00:14:53]} {[%emt 00:00:05]} 8. O-O
{[%clk 00:15:29]} {[%emt 00:00:04]} O-O {[%clk 00:14:47]} {[%emt 00:00:07]} 9.
Nc3 {[%clk 00:15:10]} {[%emt 00:00:24]} Na6 {[%clk 00:14:32]} {[%emt 00:00:24]}
10. a3 {[%clk 00:14:22]} {[%emt 00:00:49]} Be7 {[%clk 00:13:54]} {[%emt
00:00:44]} 11. Bf4 {[%clk 00:12:39]} {[%emt 00:01:47]} Nc5 {[%clk 00:13:25]}
{[%emt 00:00:34]} 12. Qd1 {[%clk 00:12:31]} {[%emt 00:00:16]} Nce4 {[%clk
00:09:36]} {[%emt 00:03:50]} 13. Nxe4 {[%clk 00:12:29]} {[%emt 00:00:13]} Bxe4
{[%clk 00:09:24]} {[%emt 00:00:17]} 14. Bd6 {[%clk 00:11:39]} {[%emt 00:00:50]}
Rc8 {[%clk 00:08:52]} {[%emt 00:00:45]} 15. Rc1 {[%clk 00:11:32]} {[%emt
00:00:06]} Bxd6 {[%clk 00:08:07]} {[%emt 00:00:48]} 16. Qxd6 {[%clk 00:11:35]}
{[%emt 00:00:09]} Qc7 {[%clk 00:07:55]} {[%emt 00:00:11]} 17. Qd2 {[%clk
00:09:04]} {[%emt 00:02:36]} Rfd8 {[%clk 00:07:27]} {[%emt 00:04:11]} 18. Rc3
{[%clk 00:08:12]} Qb7 {[%clk 00:06:52]} {[%emt 00:03:05]} 19. Rfc1 {[%clk
00:08:09]} h6 {[%clk 00:04:59]} 20. Qd6 {[%clk 00:07:19]} Rc6 {[%clk 00:04:36]}
21. Qf4 {[%clk 00:07:17]} Rcc8 {[%clk 00:04:35]} {[%emt 00:00:04]} 22. Qd6
{[%clk 00:06:56]} Rc6 {[%clk 00:04:38]} 23. Qd4 {[%clk 00:07:00]} Rcc8 {[%clk
00:04:35]} 24. b4 {[%clk 00:06:37]} d6 {[%clk 00:04:30]} 25. h3 {[%clk
00:06:25]} {[%emt 00:00:06]} Kf8 {[%clk 00:04:11]} {[%emt 00:00:24]} 26. Ne1
{[%clk 00:05:58]} {[%emt 00:00:39]} Bxg2 {[%clk 00:04:10]} 27. Nxg2 {[%clk
00:06:01]} Kg8 {[%clk 00:03:42]} {[%emt 00:00:46]} 28. g4 {[%clk 00:05:59]} 1-0